[Event "Paris GCT Rapid"]
[Site "Paris"]
[Date "2017.06.22"]
[Round "5"]
[White "Bacrot, Etienne"]
[Black "Karjakin, Sergey"]
[Result "0-1"]
[ECO "B51"]
[WhiteElo "2708"]
[BlackElo "2781"]
[PlyCount "52"]
[EventDate "2017.06.21"]
[EventType "tourn (rapid)"]
[EventRounds "9"]
[EventCountry "FRA"]
[EventCategory "22"]
[SourceTitle "CBM 179"]
[Source "ChessBase"]
[SourceDate "2017.07.12"]
[SourceVersion "1"]
[SourceVersionDate "2017.07.12"]
[SourceQuality "1"]
[TimeControl "1500"]

1. e4 {[%emt 0:00:00]} c5 {[%emt 0:00:00]} 2. Nf3 {[%emt 0:00:00]} d6 {[%emt 0:
00:00]} 3. Bb5+ {[%emt 0:00:00]} Nd7 {[%emt 0:00:00]} 4. O-O {[%emt 0:00:00]}
Ngf6 {[%emt 0:00:00]} 5. Re1 {[%emt 0:00:00]} a6 {[%emt 0:00:00]} 6. Bf1 {
[%emt 0:00:00]} b6 {[%emt 0:00:23]} 7. d4 {[%emt 0:02:01]} cxd4 {[%emt 0:00:00]
} 8. Qxd4 {[%emt 0:00:28]} Bb7 {[%emt 0:00:49]} 9. Nc3 {[%emt 0:00:05]} e6 {
[%emt 0:01:14]} 10. Bg5 {[%emt 0:01:23]} Be7 {[%emt 0:00:07]} 11. Rad1 {
[%emt 0:00:00]} Qc7 {[%emt 0:02:11]} 12. a4 {[%emt 0:00:11]} Rc8 {[%emt 0:02:
39]} 13. h3 {[%emt 0:02:02]} O-O {[%emt 0:00:59]} 14. Qe3 {[%emt 0:00:17]} h6 {
[%emt 0:03:09]} 15. Bh4 {[%emt 0:00:49]} Rfd8 {[%emt 0:00:48]} 16. Bg3 {
[%emt 0:01:24]} Ne5 {[%emt 0:00:05]} 17. Nd2 {[%emt 0:00:41]} Nfd7 {[%emt 0:00:
46]} 18. Kh1 {[%emt 0:00:20]} Nc5 {[%emt 0:00:49]} 19. f4 {[%emt 0:02:34]} Nc6
{[%emt 0:00:00]} 20. Nf3 {[%emt 0:00:14]} Nb4 {[%emt 0:00:41]} 21. Qf2 {
[%emt 0:01:04]} Bf6 {[%emt 0:01:48]} 22. f5 {[%emt 0:00:56]} Bxc3 {[%emt 0:01:
17]} 23. bxc3 {[%emt 0:00:00]} Na2 {[%emt 0:00:00]} 24. fxe6 {[%emt 0:03:45]}
Nxc3 {[%emt 0:00:32]} 25. Bxd6 {[%emt 0:04:02]} Nxd1 {[%emt 0:00:05]} 26. Rxd1
{[%emt 0:00:00]} Rxd6 {[%emt 0:01:49]} 0-1

[Event "Paris GCT Rapid"]
[Site "Paris"]
[Date "2017.06.23"]
[Round "8"]
[White "Karjakin, Sergey"]
[Black "Vachier Lagrave, Maxime"]
[Result "0-1"]
[ECO "B90"]
[WhiteElo "2781"]
[BlackElo "2796"]
[PlyCount "106"]
[EventDate "2017.06.21"]
[EventType "tourn (rapid)"]
[EventRounds "9"]
[EventCountry "FRA"]
[EventCategory "22"]
[SourceTitle "CBM 179"]
[Source "ChessBase"]
[SourceDate "2017.07.12"]
[SourceVersion "1"]
[SourceVersionDate "2017.07.12"]
[SourceQuality "1"]
[TimeControl "1500"]

1. e4 {[%emt 0:00:00]} c5 {[%emt 0:00:00]} 2. Nf3 {[%emt 0:00:00]} d6 {[%emt 0:
00:00]} 3. d4 {[%emt 0:00:00]} cxd4 {[%emt 0:00:00]} 4. Nxd4 {[%emt 0:00:00]}
Nf6 {[%emt 0:00:00]} 5. Nc3 {[%emt 0:00:00]} a6 {[%emt 0:00:00]} 6. h3 {
[%emt 0:00:00]} e5 {[%emt 0:00:00]} 7. Nde2 {[%emt 0:00:00]} h5 {[%emt 0:00:00]
} 8. g3 {[%emt 0:00:00]} Be6 {[%emt 0:00:41]} 9. Bg2 {[%emt 0:00:00]} b5 {
[%emt 0:00:00]} 10. O-O {[%emt 0:01:32]} Nbd7 {[%emt 0:00:00]} 11. Be3 {
[%emt 0:00:48]} Be7 {[%emt 0:00:07]} 12. Nd5 {[%emt 0:00:29]} Nxd5 {[%emt 0:00:
00]} 13. exd5 {[%emt 0:00:00]} Bf5 {[%emt 0:00:00]} 14. f4 {[%emt 0:00:00]} Rc8
{[%emt 0:00:07]} 15. c3 {[%emt 0:00:00]} Bh7 {[%emt 0:00:00]} 16. Qe1 {[%emt 0:
03:27]} O-O {[%emt 0:01:16]} 17. Rd1 {[%emt 0:00:00]} h4 {[%emt 0:00:07]} 18.
g4 {[%emt 0:00:50]} exf4 {[%emt 0:00:00]} 19. Nxf4 {[%emt 0:01:36]} Bg5 {
[%emt 0:00:15]} 20. Bd4 {[%emt 0:00:05]} Re8 {[%emt 0:01:07]} 21. Qf2 {[%emt 0:
00:00]} Ne5 {[%emt 0:00:00]} 22. Rde1 {[%emt 0:00:27]} Qd7 {[%emt 0:00:31]} 23.
Be4 {[%emt 0:01:31]} Bxe4 {[%emt 0:00:00]} 24. Rxe4 {[%emt 0:00:00]} Qb7 {
[%emt 0:01:58]} 25. a3 {[%emt 0:02:48]} Rc7 {[%emt 0:01:12]} 26. Bxe5 {[%emt 0:
08:40]} dxe5 {[%emt 0:00:18]} 27. Rfe1 {[%emt 0:00:08]} Rc4 {[%emt 0:01:31]}
28. Rxc4 {[%emt 0:00:57]} bxc4 {[%emt 0:00:00]} 29. Ng2 {[%emt 0:00:00]} Qxd5 {
[%emt 0:00:00]} 30. Nxh4 {[%emt 0:00:00]} e4 {[%emt 0:00:29]} 31. Nf5 {[%emt 0:
00:00]} e3 {[%emt 0:00:00]} 32. Qe2 {[%emt 0:00:13]} g6 {[%emt 0:00:21]} 33.
Nd4 {[%emt 0:00:03]} Bh4 {[%emt 0:00:16]} 34. Rf1 {[%emt 0:01:00]} Bf2+ {
[%emt 0:00:00]} 35. Rxf2 {[%emt 0:00:00]} exf2+ {[%emt 0:00:00]} 36. Qxf2 {
[%emt 0:00:00]} Qe4 {[%emt 0:00:20]} 37. Nf3 {[%emt 0:00:08]} Qe2 {[%emt 0:00:
33]} 38. Kg2 {[%emt 0:00:06]} Qxf2+ {[%emt 0:00:22]} 39. Kxf2 {[%emt 0:00:00]}
Rb8 {[%emt 0:00:00]} 40. Ne5 {[%emt 0:00:00]} Rxb2+ 41. Ke3 {[%emt 0:00:00]}
Rh2 {[%emt 0:00:25]} 42. Kd4 {[%emt 0:00:00]} Rxh3 {[%emt 0:00:00]} 43. Kxc4 {
[%emt 0:00:00]} Rg3 {[%emt 0:00:00]} 44. Kd4 {[%emt 0:00:00]} f6 {[%emt 0:00:
00]} 45. Nd7 {[%emt 0:00:00]} Rxg4+ {[%emt 0:00:00]} 46. Kd5 {[%emt 0:00:00]}
Kf7 {[%emt 0:00:00]} 47. c4 {[%emt 0:00:00]} Ke7 {[%emt 0:00:01]} 48. Nb6 {
[%emt 0:00:00]} Rg1 {[%emt 0:00:07]} 49. c5 {[%emt 0:00:00]} Rd1+ {[%emt 0:00:
00]} 50. Kc6 {[%emt 0:00:00]} g5 {[%emt 0:00:20]} 51. Kb7 {[%emt 0:00:00]} g4 {
[%emt 0:00:18]} 52. c6 {[%emt 0:00:00]} g3 {[%emt 0:00:12]} 53. c7 {[%emt 0:00:
00]} Rc1 {[%emt 0:00:00]} 0-1